[Event "Titled Tuesday Blitz March 29 Early 2022"]
[White "Kozak, Antoni"]
[Black "Schut, Han"]
[WhiteFideId "21832030"]
[BlackFideId "1005561"]
[WhiteElo "2236"]
[BlackElo "2057"]
[Result "1-0"]
[Round "02"]
[TimeControl "180+1"]
[Date "2022.03.30"]
[WhiteClock "0:00:17"]
[BlackClock "0:00:14"]

1. d4 {[%clk 0:02:59]}  Nf6 {[%clk 0:02:59]} 2. c4 {[%clk 0:02:56]}  g6 {[%clk 0:02:59]} 3. Nc3 {[%clk 0:02:55]}  d5 {[%clk 0:02:59]} 4. Nf3 {[%clk 0:02:50]}  Bg7 {[%clk 0:02:59]} 5. cxd5 {[%clk 0:02:50]}  Nxd5 {[%clk 0:02:59]} 6. e4 {[%clk 0:02:51]}  Nxc3 {[%clk 0:03:00]} 7. bxc3 {[%clk 0:02:51]}  c5 {[%clk 0:03:00]} 8. Bb5+ {[%clk 0:02:51]}  Nc6 {[%clk 0:02:59]} 9. d5 {[%clk 0:02:31]}  Qa5 {[%clk 0:02:35]} 10. Rb1 {[%clk 0:02:23]}  a6 {[%clk 0:02:22]} 11. Ba4 {[%clk 0:01:45]}  Bxc3+ {[%clk 0:02:04]} 12. Bd2 {[%clk 0:01:44]}  Bxd2+ {[%clk 0:02:04]} 13. Nxd2 {[%clk 0:01:44]}  b5 {[%clk 0:02:02]} 14. dxc6 {[%clk 0:01:41]}  Qxa4 {[%clk 0:01:47]} 15. Qxa4 {[%clk 0:01:34]}  bxa4 {[%clk 0:01:48]} 16. Ke2 {[%clk 0:01:05]}  Be6 {[%clk 0:01:46]} 17. Rhc1 {[%clk 0:00:52]}  Bxa2 {[%clk 0:01:06]} 18. Ra1 {[%clk 0:00:33]}  Bb3 {[%clk 0:01:02]} 19. Rxc5 {[%clk 0:00:33]}  O-O {[%clk 0:00:51]} 20. Rc3 {[%clk 0:00:29]}  Rfc8 {[%clk 0:00:45]} 21. Rac1 {[%clk 0:00:20]}  Be6 {[%clk 0:00:28]} 22. Ra3 {[%clk 0:00:18]}  Bb3 {[%clk 0:00:19]} 23. Nxb3 {[%clk 0:00:18]}  axb3 {[%clk 0:00:20]} 24. Rxb3 {[%clk 0:00:18]}  Ra7 {[%clk 0:00:18]} 25. Rb7 {[%clk 0:00:17]}  Rxc6 {[%clk 0:00:14]} 26. Rb8+ {[%clk 0:00:17]} 1-0


[Site "https://www.chess.com"]

[Event "Titled Tuesday Blitz March 29 Early 2022"]
[White "Le Ruyet, Leopold"]
[Black "Lauridsen, Jesper Morch"]
[WhiteFideId "645923"]
[BlackFideId "1401890"]
[WhiteElo "2276"]
[BlackElo "2297"]
[Result "0-1"]
[Round "02"]
[TimeControl "180+1"]
[Date "2022.03.30"]
[WhiteClock "0:00:08"]
[BlackClock "0:00:08"]

1. d4 {[%clk 0:03:00]}  Nf6 {[%clk 0:02:59]} 2. c4 {[%clk 0:03:00]}  g6 {[%clk 0:02:59]} 3. Nc3 {[%clk 0:03:00]}  Bg7 {[%clk 0:02:59]} 4. e4 {[%clk 0:03:01]}  d6 {[%clk 0:02:59]} 5. f3 {[%clk 0:03:00]}  O-O {[%clk 0:03:00]} 6. Be3 {[%clk 0:03:01]}  c5 {[%clk 0:03:01]} 7. Nge2 {[%clk 0:02:58]}  cxd4 {[%clk 0:03:01]} 8. Nxd4 {[%clk 0:02:58]}  Nc6 {[%clk 0:03:01]} 9. Be2 {[%clk 0:02:59]}  Bd7 {[%clk 0:03:02]} 10. O-O {[%clk 0:02:59]}  Nxd4 {[%clk 0:03:01]} 11. Bxd4 {[%clk 0:02:59]}  a5 {[%clk 0:03:01]} 12. Nb5 {[%clk 0:02:51]}  Bxb5 {[%clk 0:02:48]} 13. cxb5 {[%clk 0:02:51]}  Nd7 {[%clk 0:02:45]} 14. Bxg7 {[%clk 0:02:35]}  Kxg7 {[%clk 0:02:45]} 15. Qd4+ {[%clk 0:02:33]}  Kg8 {[%clk 0:02:41]} 16. Kh1 {[%clk 0:02:32]}  Qb6 {[%clk 0:02:36]} 17. Qd2 {[%clk 0:02:30]}  a4 {[%clk 0:02:29]} 18. f4 {[%clk 0:02:10]}  f6 {[%clk 0:02:19]} 19. Qd5+ {[%clk 0:02:00]}  Kg7 {[%clk 0:02:17]} 20. Bg4 {[%clk 0:01:07]}  Nc5 {[%clk 0:02:00]} 21. e5 {[%clk 0:01:07]}  fxe5 {[%clk 0:01:32]} 22. fxe5 {[%clk 0:01:07]}  Rxf1+ {[%clk 0:01:33]} 23. Rxf1 {[%clk 0:01:06]}  Rf8 {[%clk 0:01:33]} 24. Rxf8 {[%clk 0:00:51]}  Kxf8 {[%clk 0:01:31]} 25. Qd4 {[%clk 0:00:22]}  Qxb5 {[%clk 0:01:27]} 26. h3 {[%clk 0:00:17]}  Qd3 {[%clk 0:01:03]} 27. Qf4+ {[%clk 0:00:16]}  Kg7 {[%clk 0:01:03]} 28. e6 {[%clk 0:00:13]}  Ne4 {[%clk 0:00:42]} 29. Qf7+ {[%clk 0:00:11]}  Kh6 {[%clk 0:00:42]} 30. Qf8+ {[%clk 0:00:11]}  Kg5 {[%clk 0:00:43]} 31. Qxe7+ {[%clk 0:00:12]}  Kf4 {[%clk 0:00:44]} 32. Qh4 {[%clk 0:00:11]}  Ng3+ {[%clk 0:00:31]} 33. Kh2 {[%clk 0:00:09]}  g5 {[%clk 0:00:30]} 34. Qh6 {[%clk 0:00:08]}  Nf1+ {[%clk 0:00:26]} 35. Kg1 {[%clk 0:00:07]}  Qd4+ {[%clk 0:00:20]} 36. Kxf1 {[%clk 0:00:07]}  Kg3 {[%clk 0:00:17]} 37. Qf8 {[%clk 0:00:07]}  Qd3+ {[%clk 0:00:15]} 38. Ke1 {[%clk 0:00:05]}  Qb1+ {[%clk 0:00:13]} 39. Kd2 {[%clk 0:00:05]}  Qxb2+ {[%clk 0:00:13]} 40. Kd3 {[%clk 0:00:05]}  Qb5+ {[%clk 0:00:12]} 41. Ke4 {[%clk 0:00:05]}  Qe5+ {[%clk 0:00:11]} 42. Kd3 {[%clk 0:00:06]}  Qb5+ {[%clk 0:00:11]} 43. Kd2 {[%clk 0:00:06]}  Qb4+ {[%clk 0:00:11]} 44. Kc2 {[%clk 0:00:06]}  Qc4+ {[%clk 0:00:11]} 45. Kb2 {[%clk 0:00:06]}  Qb4+ {[%clk 0:00:11]} 46. Kc2 {[%clk 0:00:07]}  Qc4+ {[%clk 0:00:12]} 47. Kd2 {[%clk 0:00:07]}  Qd4+ {[%clk 0:00:12]} 48. Ke2 {[%clk 0:00:08]}  Qb2+ {[%clk 0:00:11]} 49. Ke3 {[%clk 0:00:08]}  Qc3+ {[%clk 0:00:10]} 50. Ke4 {[%clk 0:00:09]}  Qc4+ {[%clk 0:00:09]} 51. Kf5 {[%clk 0:00:08]}  Qf4# {[%clk 0:00:08]} 0-1


[Site "https://www.chess.com"]

[Event "Titled Tuesday Blitz March 29 Early 2022"]
[White "Lehtosaari, Mauri"]
[Black "Avalos Parra, Joao"]
[WhiteFideId "501999"]
[BlackFideId "3402541"]
[WhiteElo "2515"]
[BlackElo "2173"]
[Result "1/2-1/2"]
[Round "02"]
[TimeControl "180+1"]
[Date "2022.03.30"]
[WhiteClock "0:00:05"]
[BlackClock "0:00:08"]

1. d4 {[%clk 0:03:00]}  e6 {[%clk 0:02:57]} 2. Nf3 {[%clk 0:03:00]}  Nf6 {[%clk 0:02:57]} 3. Bg5 {[%clk 0:02:59]}  d5 {[%clk 0:02:54]} 4. e3 {[%clk 0:02:58]}  Nbd7 {[%clk 0:02:50]} 5. Nbd2 {[%clk 0:02:58]}  Be7 {[%clk 0:02:48]} 6. Bd3 {[%clk 0:02:58]}  b6 {[%clk 0:02:45]} 7. O-O {[%clk 0:02:57]}  Bb7 {[%clk 0:02:46]} 8. c3 {[%clk 0:02:57]}  O-O {[%clk 0:02:42]} 9. a4 {[%clk 0:02:57]}  a6 {[%clk 0:02:41]} 10. Qe2 {[%clk 0:02:55]}  c5 {[%clk 0:02:39]} 11. Ne5 {[%clk 0:02:55]}  Ne4 {[%clk 0:02:32]} 12. Bxe7 {[%clk 0:02:50]}  Qxe7 {[%clk 0:02:23]} 13. Nxd7 {[%clk 0:02:41]}  Qxd7 {[%clk 0:02:11]} 14. Nf3 {[%clk 0:02:41]}  f6 {[%clk 0:02:08]} 15. Bc2 {[%clk 0:02:34]}  Nd6 {[%clk 0:01:58]} 16. Rad1 {[%clk 0:02:30]}  Rad8 {[%clk 0:01:58]} 17. Nd2 {[%clk 0:02:11]}  Rfe8 {[%clk 0:01:51]} 18. Qh5 {[%clk 0:02:08]}  g6 {[%clk 0:01:47]} 19. Qh4 {[%clk 0:02:08]}  Kg7 {[%clk 0:01:44]} 20. f4 {[%clk 0:02:00]}  Qe7 {[%clk 0:01:17]} 21. Nf3 {[%clk 0:01:48]}  Nc4 {[%clk 0:01:14]} 22. Qf2 {[%clk 0:01:26]}  b5 {[%clk 0:00:57]} 23. axb5 {[%clk 0:01:25]}  axb5 {[%clk 0:00:58]} 24. b3 {[%clk 0:01:25]}  Nd6 {[%clk 0:00:57]} 25. g4 {[%clk 0:01:21]}  cxd4 {[%clk 0:00:52]} 26. cxd4 {[%clk 0:01:20]}  Rc8 {[%clk 0:00:51]} 27. g5 {[%clk 0:01:12]}  Ne4 {[%clk 0:00:39]} 28. Bxe4 {[%clk 0:01:10]}  dxe4 {[%clk 0:00:39]} 29. gxf6+ {[%clk 0:01:07]}  Qxf6 {[%clk 0:00:37]} 30. Ne5 {[%clk 0:01:07]}  Bd5 {[%clk 0:00:33]} 31. b4 {[%clk 0:01:04]}  Rc3 {[%clk 0:00:32]} 32. Ra1 {[%clk 0:01:00]}  Rec8 {[%clk 0:00:32]} 33. Ra7+ {[%clk 0:00:59]}  R8c7 {[%clk 0:00:32]} 34. Rxc7+ {[%clk 0:00:52]}  Rxc7 {[%clk 0:00:33]} 35. Ra1 {[%clk 0:00:51]}  Qe7 {[%clk 0:00:32]} 36. Qd2 {[%clk 0:00:41]}  Qd6 {[%clk 0:00:25]} 37. Rc1 {[%clk 0:00:22]}  Rxc1+ {[%clk 0:00:24]} 38. Qxc1 {[%clk 0:00:23]}  Qxb4 {[%clk 0:00:21]} 39. Qc7+ {[%clk 0:00:23]}  Kh6 {[%clk 0:00:18]} 40. Qf7 {[%clk 0:00:08]}  Qe1+ {[%clk 0:00:17]} 41. Kg2 {[%clk 0:00:08]}  Qe2+ {[%clk 0:00:18]} 42. Kg3 {[%clk 0:00:06]}  Qxe3+ {[%clk 0:00:18]} 43. Kh4 {[%clk 0:00:05]}  Qf2+ {[%clk 0:00:18]} 44. Kh3 {[%clk 0:00:05]}  Qf1+ {[%clk 0:00:12]} 45. Kh4 {[%clk 0:00:04]}  Qe1+ {[%clk 0:00:11]} 46. Kh3 {[%clk 0:00:04]}  Qe3+ {[%clk 0:00:12]} 47. Kh4 {[%clk 0:00:05]}  Qf2+ {[%clk 0:00:11]} 48. Kh3 {[%clk 0:00:05]}  Qf1+ {[%clk 0:00:07]} 49. Kh4 {[%clk 0:00:05]}  Qf2+ {[%clk 0:00:08]} 1/2-1/2


[Site "https://www.chess.com"]

[Event "Titled Tuesday Blitz March 29 Early 2022"]
[White "Maghsoodloo, Parham"]
[Black "Al-Tarboush, Ward"]
[WhiteFideId "12539929"]
[BlackFideId "7601450"]
[WhiteElo "2630"]
[BlackElo "2276"]
[Result "1-0"]
[Round "02"]
[TimeControl "180+1"]
[Date "2022.03.29"]
[WhiteClock "0:01:06"]
[BlackClock "0:00:03"]

1. e4 {[%clk 0:03:00]}  e6 {[%clk 0:02:59]} 2. d4 {[%clk 0:03:00]}  d5 {[%clk 0:02:58]} 3. Nd2 {[%clk 0:02:59]}  c5 {[%clk 0:02:57]} 4. Ngf3 {[%clk 0:02:57]}  cxd4 {[%clk 0:02:53]} 5. Nxd4 {[%clk 0:02:56]}  Nc6 {[%clk 0:02:51]} 6. Nxc6 {[%clk 0:02:49]}  bxc6 {[%clk 0:02:50]} 7. Bd3 {[%clk 0:02:48]}  Bd6 {[%clk 0:02:50]} 8. O-O {[%clk 0:02:47]}  Ne7 {[%clk 0:02:51]} 9. f4 {[%clk 0:02:45]}  O-O {[%clk 0:02:19]} 10. c4 {[%clk 0:02:41]}  e5 {[%clk 0:02:15]} 11. fxe5 {[%clk 0:02:37]}  Bxe5 {[%clk 0:02:13]} 12. Nf3 {[%clk 0:02:36]}  Bc7 {[%clk 0:02:10]} 13. cxd5 {[%clk 0:02:34]}  cxd5 {[%clk 0:02:05]} 14. exd5 {[%clk 0:02:13]}  Qxd5 {[%clk 0:01:56]} 15. Qc2 {[%clk 0:02:04]}  Bb6+ {[%clk 0:01:54]} 16. Kh1 {[%clk 0:02:04]}  Bf5 {[%clk 0:01:43]} 17. Bxf5 {[%clk 0:02:02]}  Qxf5 {[%clk 0:01:44]} 18. Qxf5 {[%clk 0:01:54]}  Nxf5 {[%clk 0:01:45]} 19. Ne5 {[%clk 0:01:55]}  g6 {[%clk 0:01:18]} 20. g4 {[%clk 0:01:47]}  Ne3 {[%clk 0:00:44]} 21. Bxe3 {[%clk 0:01:26]}  Bxe3 {[%clk 0:00:44]} 22. Rad1 {[%clk 0:01:26]}  Rad8 {[%clk 0:00:37]} 23. Nd7 {[%clk 0:01:25]}  Rxd7 {[%clk 0:00:13]} 24. Rxd7 {[%clk 0:01:25]}  Kg7 {[%clk 0:00:06]} 25. b4 {[%clk 0:01:23]}  h5 {[%clk 0:00:05]} 26. gxh5 {[%clk 0:01:22]}  gxh5 {[%clk 0:00:06]} 27. a4 {[%clk 0:01:21]}  Kg6 {[%clk 0:00:05]} 28. Rd3 {[%clk 0:01:18]}  Bg5 {[%clk 0:00:05]} 29. Rg3 {[%clk 0:01:16]}  h4 {[%clk 0:00:05]} 30. Rg4 {[%clk 0:01:14]}  f5 {[%clk 0:00:05]} 31. Rc4 {[%clk 0:01:13]}  Rb8 {[%clk 0:00:03]} 32. b5 {[%clk 0:01:12]}  Be3 {[%clk 0:00:02]} 33. Rxh4 {[%clk 0:01:07]}  f4 {[%clk 0:00:02]} 34. Rfxf4 {[%clk 0:01:07]}  Bxf4 {[%clk 0:00:03]} 35. Rxf4 {[%clk 0:01:06]}  a6 {[%clk 0:00:02]} 36. bxa6 {[%clk 0:01:06]}  Ra8 {[%clk 0:00:02]} 37. h4 {[%clk 0:01:05]}  Rxa6 {[%clk 0:00:02]} 38. Kg2 {[%clk 0:01:06]}  Kh5 {[%clk 0:00:02]} 39. Kf2 {[%clk 0:01:06]}  Rc6 {[%clk 0:00:03]} 40. Ke3 {[%clk 0:01:06]}  Rc2 {[%clk 0:00:02]} 41. Kd3 {[%clk 0:01:06]}  Ra2 {[%clk 0:00:02]} 42. Kc3 {[%clk 0:01:06]}  Ra3+ {[%clk 0:00:01]} 43. Kb4 {[%clk 0:01:06]}  Ra1 {[%clk 0:00:02]} 44. a5 {[%clk 0:01:06]}  Rb1+ {[%clk 0:00:03]} 45. Kc5 {[%clk 0:01:06]}  Ra1 {[%clk 0:00:04]} 46. Kb5 {[%clk 0:01:06]}  Rb1+ {[%clk 0:00:04]} 47. Rb4 {[%clk 0:01:07]}  Re1 {[%clk 0:00:04]} 48. a6 {[%clk 0:01:07]}  Re5+ {[%clk 0:00:03]} 49. Ka4 {[%clk 0:01:08]}  Re7 {[%clk 0:00:03]} 50. Ka5 {[%clk 0:01:07]}  Re6 {[%clk 0:00:02]} 51. a7 {[%clk 0:01:06]}  Re5+ {[%clk 0:00:03]} 52. Rb5 {[%clk 0:01:06]} 1-0


[Site "https://www.chess.com"]

[Event "Titled Tuesday Blitz March 29 Early 2022"]
[White "Majdan, Joanna"]
[Black "Aradhya, Garg"]
[WhiteFideId "1121979"]
[BlackFideId "25006746"]
[WhiteElo "2234"]
[BlackElo "2169"]
[Result "0-1"]
[Round "02"]
[TimeControl "180+1"]
[Date "2022.03.30"]
[WhiteClock "0:01:04"]
[BlackClock "0:01:50"]

1. e4 {[%clk 0:03:00]}  e5 {[%clk 0:02:59]} 2. Nf3 {[%clk 0:02:59]}  Nc6 {[%clk 0:03:00]} 3. Bc4 {[%clk 0:03:00]}  Nf6 {[%clk 0:03:00]} 4. d3 {[%clk 0:02:56]}  Bc5 {[%clk 0:02:59]} 5. O-O {[%clk 0:02:56]}  O-O {[%clk 0:02:58]} 6. c3 {[%clk 0:02:57]}  d6 {[%clk 0:02:57]} 7. Bg5 {[%clk 0:02:56]}  h6 {[%clk 0:02:47]} 8. Bh4 {[%clk 0:02:55]}  a5 {[%clk 0:02:47]} 9. Nbd2 {[%clk 0:02:53]}  g5 {[%clk 0:02:43]} 10. Nxg5 {[%clk 0:02:29]}  hxg5 {[%clk 0:02:43]} 11. Bxg5 {[%clk 0:02:29]}  Kg7 {[%clk 0:02:44]} 12. Kh1 {[%clk 0:02:23]}  Rh8 {[%clk 0:02:44]} 13. Qf3 {[%clk 0:02:08]}  Be6 {[%clk 0:02:31]} 14. Qg3 {[%clk 0:02:04]}  Nh5 {[%clk 0:02:22]} 15. Qh4 {[%clk 0:01:49]}  f6 {[%clk 0:02:21]} 16. Be3 {[%clk 0:01:42]}  Qe8 {[%clk 0:02:12]} 17. Bxc5 {[%clk 0:01:36]}  dxc5 {[%clk 0:02:10]} 18. f4 {[%clk 0:01:35]}  exf4 {[%clk 0:01:54]} 19. Kg1 {[%clk 0:01:04]}  Ng3 {[%clk 0:01:50]} 0-1


[Site "https://www.chess.com"]

[Event "Titled Tuesday Blitz March 29 Early 2022"]
[White "Mangialardo, Tiago Carvalho"]
[Black "Iljin, Timofey"]
[WhiteFideId "2130718"]
[BlackFideId "14110180"]
[WhiteElo "2059"]
[BlackElo "2396"]
[Result "0-1"]
[Round "02"]
[TimeControl "180+1"]
[Date "2022.03.30"]
[WhiteClock "0:00:04"]
[BlackClock "0:00:33"]

1. e4 {[%clk 0:02:38]}  e5 {[%clk 0:02:38]} 2. Nf3 {[%clk 0:02:33]}  Nc6 {[%clk 0:02:38]} 3. d4 {[%clk 0:02:31]}  exd4 {[%clk 0:02:38]} 4. Nxd4 {[%clk 0:02:30]}  Bc5 {[%clk 0:02:38]} 5. Nxc6 {[%clk 0:02:25]}  Qf6 {[%clk 0:02:37]} 6. Qf3 {[%clk 0:02:03]}  dxc6 {[%clk 0:02:37]} 7. Be2 {[%clk 0:02:00]}  Be6 {[%clk 0:02:35]} 8. O-O {[%clk 0:01:50]}  O-O-O {[%clk 0:02:34]} 9. Qg3 {[%clk 0:01:28]}  Bd6 {[%clk 0:02:30]} 10. Qf3 {[%clk 0:01:23]}  Qxf3 {[%clk 0:02:26]} 11. Bxf3 {[%clk 0:01:23]}  Ne7 {[%clk 0:02:26]} 12. Be3 {[%clk 0:01:19]}  Ng6 {[%clk 0:02:25]} 13. Nd2 {[%clk 0:01:14]}  Bf4 {[%clk 0:02:13]} 14. Bxf4 {[%clk 0:01:00]}  Nxf4 {[%clk 0:02:14]} 15. Rfd1 {[%clk 0:00:54]}  g5 {[%clk 0:02:10]} 16. g3 {[%clk 0:00:28]}  g4 {[%clk 0:01:32]} 17. Bg2 {[%clk 0:00:24]}  Ne2+ {[%clk 0:01:29]} 18. Kf1 {[%clk 0:00:23]}  Nd4 {[%clk 0:01:28]} 19. c3 {[%clk 0:00:21]}  Nb5 {[%clk 0:01:22]} 20. Nb3 {[%clk 0:00:20]}  b6 {[%clk 0:01:18]} 21. Nd4 {[%clk 0:00:17]}  Bc4+ {[%clk 0:01:15]} 22. Ke1 {[%clk 0:00:15]}  Nxd4 {[%clk 0:01:15]} 23. Rxd4 {[%clk 0:00:12]}  Rxd4 {[%clk 0:01:15]} 24. cxd4 {[%clk 0:00:13]}  Kb7 {[%clk 0:01:15]} 25. b3 {[%clk 0:00:14]}  Be6 {[%clk 0:01:13]} 26. Ke2 {[%clk 0:00:14]}  Rd8 {[%clk 0:01:13]} 27. Ke3 {[%clk 0:00:14]}  f5 {[%clk 0:01:10]} 28. Rc1 {[%clk 0:00:12]}  Re8 {[%clk 0:01:08]} 29. e5 {[%clk 0:00:09]}  Bd7 {[%clk 0:01:05]} 30. b4 {[%clk 0:00:07]}  h5 {[%clk 0:00:58]} 31. Kf4 {[%clk 0:00:06]}  a6 {[%clk 0:00:57]} 32. f3 {[%clk 0:00:06]}  Rd8 {[%clk 0:00:51]} 33. Ke3 {[%clk 0:00:03]}  Rf8 {[%clk 0:00:40]} 34. a3 {[%clk 0:00:03]}  Rh8 {[%clk 0:00:38]} 35. f4 {[%clk 0:00:02]}  h4 {[%clk 0:00:38]} 36. Kf2 {[%clk 0:00:02]}  hxg3+ {[%clk 0:00:37]} 37. hxg3 {[%clk 0:00:02]}  Rh6 {[%clk 0:00:37]} 38. Rc2 {[%clk 0:00:02]}  Be8 {[%clk 0:00:36]} 39. Rc3 {[%clk 0:00:03]}  Bf7 {[%clk 0:00:37]} 40. Rc2 {[%clk 0:00:03]}  Rh2 {[%clk 0:00:34]} 41. Rc3 {[%clk 0:00:04]}  Bd5 {[%clk 0:00:33]} 0-1


[Site "https://www.chess.com"]

[Event "Titled Tuesday Blitz March 29 Early 2022"]
[White "Manolache, Marius"]
[Black "Rabineau, Clement"]
[WhiteFideId "1201530"]
[BlackFideId "628891"]
[WhiteElo "2389"]
[BlackElo "2237"]
[Result "1-0"]
[Round "02"]
[TimeControl "180+1"]
[Date "2022.03.30"]
[WhiteClock "0:01:11"]
[BlackClock "0:00:03"]

1. d4 {[%clk 0:03:00]}  d6 {[%clk 0:02:59]} 2. Nf3 {[%clk 0:03:00]}  g6 {[%clk 0:02:59]} 3. e4 {[%clk 0:02:59]}  Bg7 {[%clk 0:02:59]} 4. Be3 {[%clk 0:02:59]}  Nf6 {[%clk 0:02:54]} 5. Bd3 {[%clk 0:02:55]}  O-O {[%clk 0:02:51]} 6. h3 {[%clk 0:02:54]}  Nc6 {[%clk 0:02:48]} 7. c3 {[%clk 0:02:52]}  e5 {[%clk 0:02:38]} 8. d5 {[%clk 0:02:52]}  Ne7 {[%clk 0:02:32]} 9. g4 {[%clk 0:02:51]}  c6 {[%clk 0:02:19]} 10. c4 {[%clk 0:02:50]}  cxd5 {[%clk 0:02:07]} 11. cxd5 {[%clk 0:02:49]}  Bd7 {[%clk 0:02:00]} 12. Nc3 {[%clk 0:02:48]}  Rc8 {[%clk 0:01:51]} 13. Nd2 {[%clk 0:02:46]}  b5 {[%clk 0:01:16]} 14. Nxb5 {[%clk 0:02:35]}  Bxb5 {[%clk 0:01:09]} 15. Bxb5 {[%clk 0:02:35]}  Nxe4 {[%clk 0:00:44]} 16. Nxe4 {[%clk 0:02:31]}  Qa5+ {[%clk 0:00:45]} 17. Nc3 {[%clk 0:02:31]}  Rxc3 {[%clk 0:00:27]} 18. bxc3 {[%clk 0:02:30]}  Qxb5 {[%clk 0:00:27]} 19. Rb1 {[%clk 0:02:27]}  Qc4 {[%clk 0:00:17]} 20. Qb3 {[%clk 0:02:13]}  Qe4 {[%clk 0:00:11]} 21. O-O {[%clk 0:02:12]}  Nxd5 {[%clk 0:00:10]} 22. c4 {[%clk 0:02:06]}  Nxe3 {[%clk 0:00:07]} 23. Qxe3 {[%clk 0:02:05]}  Qxc4 {[%clk 0:00:07]} 24. Qxa7 {[%clk 0:01:59]}  e4 {[%clk 0:00:08]} 25. Rfc1 {[%clk 0:01:56]}  Qd3 {[%clk 0:00:07]} 26. Rb3 {[%clk 0:01:52]}  Qd2 {[%clk 0:00:05]} 27. Qe3 {[%clk 0:01:49]}  Qxa2 {[%clk 0:00:04]} 28. Rd1 {[%clk 0:01:48]}  Be5 {[%clk 0:00:04]} 29. Rb4 {[%clk 0:01:43]}  f5 {[%clk 0:00:04]} 30. gxf5 {[%clk 0:01:41]}  Rxf5 {[%clk 0:00:04]} 31. Rxe4 {[%clk 0:01:38]}  Qf7 {[%clk 0:00:03]} 32. Rd2 {[%clk 0:01:35]}  Rf3 {[%clk 0:00:03]} 33. Qh6 {[%clk 0:01:25]}  Qg7 {[%clk 0:00:03]} 34. Qxg7+ {[%clk 0:01:24]}  Kxg7 {[%clk 0:00:03]} 35. Kg2 {[%clk 0:01:24]}  Rf4 {[%clk 0:00:03]} 36. Rxf4 {[%clk 0:01:23]}  Bxf4 {[%clk 0:00:04]} 37. Ra2 {[%clk 0:01:22]}  Be5 {[%clk 0:00:05]} 38. Kf3 {[%clk 0:01:22]}  g5 {[%clk 0:00:05]} 39. Ra8 {[%clk 0:01:20]}  Kg6 {[%clk 0:00:05]} 40. Rg8+ {[%clk 0:01:18]}  Kf7 {[%clk 0:00:04]} 41. Rd8 {[%clk 0:01:17]}  Kg6 {[%clk 0:00:04]} 42. Ke4 {[%clk 0:01:17]}  Bf4 {[%clk 0:00:03]} 43. f3 {[%clk 0:01:15]}  h5 {[%clk 0:00:03]} 44. Rg8+ {[%clk 0:01:14]}  Kf7 {[%clk 0:00:03]} 45. Rh8 {[%clk 0:01:14]}  h4 {[%clk 0:00:04]} 46. Kf5 {[%clk 0:01:13]}  Ke7 {[%clk 0:00:04]} 47. Rh7+ {[%clk 0:01:12]}  Kd8 {[%clk 0:00:03]} 48. Ke6 {[%clk 0:01:11]}  Kc8 {[%clk 0:00:03]} 49. Rd7 {[%clk 0:01:11]} 1-0


[Site "https://www.chess.com"]

[Event "Titled Tuesday Blitz March 29 Early 2022"]
[White "Meissner, Felix"]
[Black "Demchenko, Anton"]
[WhiteFideId "24671827"]
[BlackFideId "4160258"]
[WhiteElo "2350"]
[BlackElo "2539"]
[Result "1-0"]
[Round "02"]
[TimeControl "180+1"]
[Date "2022.03.29"]
[WhiteClock "0:00:13"]
[BlackClock "0:00:01"]

1. e4 {[%clk 0:03:00]}  c5 {[%clk 0:02:57]} 2. Nf3 {[%clk 0:02:59]}  g6 {[%clk 0:02:57]} 3. c3 {[%clk 0:02:53]}  d6 {[%clk 0:02:53]} 4. Bb5+ {[%clk 0:02:51]}  Bd7 {[%clk 0:02:50]} 5. Bxd7+ {[%clk 0:02:50]}  Nxd7 {[%clk 0:02:50]} 6. O-O {[%clk 0:02:50]}  Ngf6 {[%clk 0:02:50]} 7. Re1 {[%clk 0:02:51]}  c4 {[%clk 0:02:38]} 8. Qa4 {[%clk 0:02:47]}  Rc8 {[%clk 0:02:24]} 9. Qxa7 {[%clk 0:02:45]}  Bg7 {[%clk 0:02:23]} 10. Na3 {[%clk 0:02:44]}  O-O {[%clk 0:02:22]} 11. b3 {[%clk 0:02:31]}  Nc5 {[%clk 0:02:17]} 12. Nxc4 {[%clk 0:02:25]}  b5 {[%clk 0:02:06]} 13. Nb6 {[%clk 0:02:12]}  Rb8 {[%clk 0:02:02]} 14. Nd5 {[%clk 0:02:09]}  Nfd7 {[%clk 0:01:36]} 15. Qc7 {[%clk 0:01:57]}  e6 {[%clk 0:01:32]} 16. Qxd8 {[%clk 0:01:55]}  Rbxd8 {[%clk 0:01:29]} 17. Nb4 {[%clk 0:01:49]}  Ra8 {[%clk 0:01:25]} 18. Bb2 {[%clk 0:01:46]}  f5 {[%clk 0:01:17]} 19. exf5 {[%clk 0:01:44]}  gxf5 {[%clk 0:01:18]} 20. d4 {[%clk 0:01:44]}  Ne4 {[%clk 0:01:18]} 21. Rad1 {[%clk 0:01:42]}  Rfc8 {[%clk 0:01:17]} 22. Rd3 {[%clk 0:01:38]}  Ndf6 {[%clk 0:01:13]} 23. Nd2 {[%clk 0:01:37]}  Bh6 {[%clk 0:01:07]} 24. Nxe4 {[%clk 0:01:35]}  fxe4 {[%clk 0:01:08]} 25. Rg3+ {[%clk 0:01:31]}  Kf7 {[%clk 0:01:08]} 26. f3 {[%clk 0:01:30]}  Bd2 {[%clk 0:01:06]} 27. Re2 {[%clk 0:01:30]}  e3 {[%clk 0:00:58]} 28. Rg5 {[%clk 0:01:24]}  Bxc3 {[%clk 0:00:51]} 29. Bxc3 {[%clk 0:01:12]}  Rxc3 {[%clk 0:00:52]} 30. h4 {[%clk 0:01:09]}  Rb8 {[%clk 0:00:39]} 31. h5 {[%clk 0:00:55]}  h6 {[%clk 0:00:35]} 32. Rg6 {[%clk 0:00:52]}  Nxh5 {[%clk 0:00:31]} 33. Rxh6 {[%clk 0:00:50]}  Nf4 {[%clk 0:00:24]} 34. Re1 {[%clk 0:00:50]}  Rg8 {[%clk 0:00:23]} 35. g4 {[%clk 0:00:48]}  Kg7 {[%clk 0:00:15]} 36. Rh2 {[%clk 0:00:47]}  Rgc8 {[%clk 0:00:13]} 37. Rb2 {[%clk 0:00:35]}  Rc1 {[%clk 0:00:12]} 38. Rb1 {[%clk 0:00:33]}  Rxb1 {[%clk 0:00:11]} 39. Rxb1 {[%clk 0:00:31]}  Kf6 {[%clk 0:00:12]} 40. Re1 {[%clk 0:00:31]}  Rc3 {[%clk 0:00:13]} 41. Kh2 {[%clk 0:00:27]}  e5 {[%clk 0:00:07]} 42. Kg3 {[%clk 0:00:27]}  d5 {[%clk 0:00:05]} 43. g5+ {[%clk 0:00:25]}  Kf5 {[%clk 0:00:05]} 44. dxe5 {[%clk 0:00:24]}  Kxe5 {[%clk 0:00:06]} 45. a4 {[%clk 0:00:19]}  bxa4 {[%clk 0:00:06]} 46. bxa4 {[%clk 0:00:20]}  d4 {[%clk 0:00:07]} 47. a5 {[%clk 0:00:19]}  Kf5 {[%clk 0:00:06]} 48. a6 {[%clk 0:00:19]}  Ra3 {[%clk 0:00:07]} 49. g6 {[%clk 0:00:19]}  Nxg6 {[%clk 0:00:06]} 50. Rd1 {[%clk 0:00:19]}  e2 {[%clk 0:00:03]} 51. Re1 {[%clk 0:00:18]}  Ne5 {[%clk 0:00:02]} 52. a7 {[%clk 0:00:14]}  Rxa7 {[%clk 0:00:01]} 53. Rxe2 {[%clk 0:00:14]}  Rg7+ {[%clk 0:00:01]} 54. Kf2 {[%clk 0:00:13]}  Rb7 {[%clk 0:00:02]} 55. Nc2 {[%clk 0:00:12]}  d3 {[%clk 0:00:01]} 56. Ne3+ {[%clk 0:00:12]}  Ke6 {[%clk 0:00:01]} 57. Ra2 {[%clk 0:00:13]} 1-0


[Site "https://www.chess.com"]